Cogmind - Beta 14 @@@ ROGUE MODE // 2024.09.19 @ 19:30:23 Player: Daffa0360 Result: Destroyed by IW-VE3(R) with Subdweller Shrapnel Launcher Performance ------------- Evolutions (0) 0 Regions Visited (3) 600 Robots Destroyed (27) 135 Value Destroyed (614) 614 Prototype IDs (2) 40 Alien Tech Used (0) 0 Bonus (0) 0 TOTAL SCORE: 1389 Bonus ------- None Cogmind --------- Core Integrity 0/250 Matter 288/300 Energy 194/200 System Corruption 0% Temperature Cool (13) Movement Core (300) Ox5 Location -10/Subcaves Parts ------- > --- POWER (1) -------- Subdweller Power Source > --- PROPULSION (2) --- (None) > --- UTILITY (2) ------ Small Storage Unit Makeshift Light Armor Plating > --- WEAPON (2) ------- Subdweller Machine Gun > --- INVENTORY (8) ---- Subdweller Power Source Structural Scanner Subdweller Optics Sensor Array Subdweller Machine Gun Multitool Heavy Hammer Peak State ------------ > --- POWER ------------ Light Nuclear Core > --- PROPULSION ------- Aluminum Leg Aluminum Leg > --- UTILITY ---------- Small Storage Unit Makeshift Light Armor Plating > --- WEAPON ----------- Beam Rifle Particle Gun > --- INVENTORY -------- Subdweller Power Source Structural Scanner Sensor Array Subdweller Machine Gun Rocket Launcher Multitool Heavy Hammer Shrapnel Trap [Rating: 15] Favorites ----------- Power Light Nuclear Core Engine Light Ion Engine Power Core Light Nuclear Core Propulsion Aluminum Leg Leg Aluminum Leg Wheel Subdweller Monowheel Utility Small Storage Unit Device Seismic Detector Storage Small Storage Unit Protection Makeshift Light Armor Plating Weapon Beam Rifle Energy Gun Beam Rifle Ballistic Gun Light Assault Rifle Launcher Rocket Launcher Impact Weapon Heavy Hammer Build | -11 -10 -10 -10 ------- Run | Yrd Mat Min Sub Slots Evolved . | . . . . Power . | . . . . Propulsion . | . . . . Utility . | . . . . Weapon . | . . . . Parts Attached 16 | . 2 7 7 Power 2 | . . 1 1 Engine 1 | . . . 1 Core 1 | . . 1 . Reactor . | . . . . Propulsion 4 | . 1 2 1 Treads . | . . . . Leg 3 | . 1 2 . Wheel 1 | . . . 1 Hover . | . . . . Flight . | . . . . Utility 2 | . . 1 1 Device 1 | . . 1 . Storage . | . . . . Processor . | . . . . Hackware . | . . . . Protection 1 | . . . 1 Artifact . | . . . . Weapon 8 | . 1 3 4 Energy Gun 4 | . 1 1 2 Energy Cannon . | . . . . Ballistic Gun 2 | . . 1 1 Ballistic Cannon . | . . . . Launcher 1 | . . 1 . Special Weapon . | . . . . Impact Weapon 1 | . . . 1 Slashing Weapon . | . . . . Piercing Weapon . | . . . . Special Melee Weapon . | . . . . Unidentified Prototypes . | . . . . Parts Lost 3 | . . . 3 Power . | . . . . Propulsion . | . . . . Utility 1 | . . . 1 Weapon 2 | . . . 2 Highest Loss Streak 2 | . . . 2 To Critical Strikes . | . . . . Average Slot Usage (%) 93 | . 85 94 96 Engine 6 | . 14 9 1 Core 7 | . . 4 12 Leg 26 | . 28 28 23 Device 8 | . . 9 11 Storage 14 | . 14 14 14 Energy Gun 18 | . 10 14 25 Ballistic Gun 7 | . 17 10 . Launcher 1 | . . 3 . Peak Build Rating 15 | 7 8 12 15 Average Rating 10 | 6 7 9 12 On Entrance 8 | 6 6 8 12 Naked Turns . | . . . . Heaviest Build 20 | 10 12 18 20 Greatest Support 20 | 20 20 20 20 Greatest Overweight (x) . | . . . . Average Overweight (x) . | . . . . Largest Inventory Capacity 8 | 8 8 8 8 Average Capacity 8 | 8 8 8 8 Most Carried 8 | 8 8 8 8 Average Carried 7 | 6 7 7 7 Final Capacity 8 | 8 8 8 8 Final Carried 8 | 7 8 8 7 Class Distribution -------------------- 51% | Mutant 48% | Scavenger-Mutant Dominant Class ---------------- Mutant | -10/Materials Mutant | -10/Mines Scavenger-Mutant | -10/Subcaves Resources | -11 -10 -10 -10 ----------- Run | Yrd Mat Min Sub Matter Collected 464 | 224 53 127 60 Remotely . | . . . . Salvage Created 800 | 129 216 244 211 Parts 63 | 15 10 24 14 Haulers Intercepted 1 | . 1 . . Recyclers Shooed 2 | 1 1 . . Parts Field Recycled . | . . . . Retrieved Matter . | . . . . Parts Self-Destructed 8 | . . . 8 Prevented . | . . . . Kills | -11 -10 -10 -10 ------- Run | Yrd Mat Min Sub Combat Hostiles Destroyed 21 | . 4 11 6 Guns 14 | . 4 5 5 AOE 6 | . . 6 . Classes Destroyed 7 | 2 3 1 1 Tunneler 2 | 2 . . . Hauler 1 | . 1 . . Recycler 2 | 1 . 1 . Watcher 1 | . 1 . . Swarmer 9 | . . 9 . Grunt 6 | . 4 2 . Subdweller 6 | . . . 6 Best Kill Streak 6 | 3 2 6 2 Combat Bots Only 6 | . 2 6 2 Max Kills in Single Turn 3 | 1 1 3 1 Gunslinging . | . . . . Exploded 3 | . . 3 . Melee . | . . . . Uniques/NPCs Destroyed . | . . . . Combat | -11 -10 -10 -10 -------- Run | Yrd Mat Min Sub Hostile Shots Fired 91 | . 15 42 34 Missed 27 | . 5 12 10 Damage Taken 1155 | . 132 329 694 Core 268 | . 43 93 132 Absorbed by Shields . | . . . . Core Remaining (%) 100 | 100 . . . Volleys Fired 82 | 12 28 17 25 Largest 2 | 2 2 2 2 Hottest 121 | 40 76 85 121 Shots Fired 158 | 24 56 30 48 Gun 154 | 24 56 26 48 Cannon . | . . . . Launcher 4 | . . 4 . Special . | . . . . Kinetic 71 | 24 33 13 1 Thermal 83 | . 23 13 47 Explosive 4 | . . 4 . Electromagnetic . | . . . . Robot Hit Streak 14 | 5 8 7 14 Robot Miss Streak 5 | 1 5 2 3 Penetration Max . | . . . . Secondary Targets . | . . . . Shots Hit Robots 98 | 16 31 15 36 Core Hits 45 | 5 12 17 11 Critical Kills . | . . . . Critical Parts Destroyed . | . . . . Critical Strikes 8 | . 1 2 5 Burn 8 | . 1 2 5 Melee Attacks 3 | . . . 3 Impact 3 | . . . 3 Slashing . | . . . . Piercing . | . . . . Sneak Attacks . | . . . . Combat Hostiles . | . . . . Follow-up Attacks . | . . . . Damage Inflicted 1457 | 129 345 465 518 Guns 1174 | 129 345 182 518 Cannons . | . . . . Explosions 283 | . . 283 . Melee . | . . . . Ramming . | . . . . Kinetic 290 | 129 112 49 . Thermal 884 | . 233 133 518 Explosive 283 | . . 283 . Electromagnetic . | . . . . Impact . | . . . . Slashing . | . . . . Piercing . | . . . . Highest Corruption . | . . . . Average Corruption . | . . . . Corruption Purged . | . . . . Corruption Blocked . | . . . . Overload Shots . | . . . . Overflow Damage 15 | . . 15 . Projectiles . | . . . . Explosions 15 | . . 15 . Melee . | . . . . Knockbacks . | . . . . Impact . | . . . . Kinetic . | . . . . Secondary . | . . . . Self-Inflicted Damage 44 | . . 44 . Shots 2 | . . 2 . Rammed . | . . . . Targets Rammed . | . . . . Kicked . | . . . . Crushed . | . . . . Highest Temperature 234 | . 234 120 66 Average Temperature 59 | . 100 46 20 Received Heat Transfer 186 | . 72 42 72 Siege Activations . | . . . . Robots Corrupted . | . . . . Combat Hostiles . | . . . . Parts Fried . | . . . . Impact Corruptions . | . . . . Robots Melted 1 | . . . 1 Combat Hostiles 1 | . . . 1 Parts Melted 4 | . 1 1 2 Heat Transferred 2775 | . 666 481 1628 Parts Sabotaged . | . . . . Parts Stolen . | . . . . Parts Stripped . | . . . . Power Chain Reactions . | . . . . Alert | -11 -10 -10 -10 ------- Run | Yrd Mat Min Sub Peak Influence 253 | 15 207 253 . Initial 9 | . 9 . . Average 79 | 6 83 84 . Maximum Alert Level 1 | . 1 1 . Low Security (%) 83 | 100 89 77 . Level 1 16 | . 10 22 . Level 2 . | . . . . Level 3 . | . . . . Level 4 . | . . . . Level 5 . | . . . . High Security . | . . . . Max Security . | . . . . Squads Dispatched 1 | . 1 . . Investigation . | . . . . Extermination . | . . . . Reinforcement 1 | . 1 . . Assault . | . . . . Garrison . | . . . . Intercept . | . . . . Searches Triggered . | . . . . Construction Impeded . | . . . . Haulers Reinforced . | . . . . Active Scanning Responses . | . . . . Cargo Convoy Interrupts . | . . . . Stealth | -11 -10 -10 -10 --------- Run | Yrd Mat Min Sub Distress Signals . | . . . . Communications Jammed . | . . . . Distress Signals . | . . . . Times Spotted 33 | . 12 12 9 Peak Tracking Total 3 | . 2 3 2 Tactical Retreats 2 | . 1 1 . Traps | -11 -10 -10 -10 ------- Run | Yrd Mat Min Sub Traps Triggered . | . . . . Indirectly . | . . . . Trap Hack Attempts . | . . . . Triggered . | . . . . Disarmed . | . . . . Reprogrammed . | . . . . Reused . | . . . . Traps Extracted . | . . . . Installed . | . . . . Triggered . | . . . . Most Traps Carried 1 | . . . 1 Machines | -11 -10 -10 -10 ---------- Run | Yrd Mat Min Sub Machines Disabled 1 | . 1 . . Max in Single Turn 1 | . 1 . . Machines Repaired . | . . . . Machines Dismantled . | . . . . Machines Sabotaged . | . . . . Overloaded Fab Kills . | . . . . Hacking | -11 -10 -10 -10 --------- Run | Yrd Mat Min Sub Machines Accessed 5 | . 5 . . Terminals 5 | . 5 . . Fabricators . | . . . . Repair Stations . | . . . . Recycling Units . | . . . . Scanalyzers . | . . . . Garrison Access . | . . . . Total Hacks 13 | . 13 . . Successful 9 | . 9 . . Failed 4 | . 4 . . Catastrophic . | . . . . Database Lockouts . | . . . . Manual 7 | . 7 . . Terminals 13 | . 13 . . Fabricators . | . . . . Repair Stations . | . . . . Recycling Units . | . . . . Scanalyzers . | . . . . Garrison Access . | . . . . Terminal Hacks 6 | . 6 . . Prototype ID Bank 1 | . 1 . . Alert Level 2 | . 2 . . Unreport Threat 1 | . 1 . . Locate Traps 1 | . 1 . . Registered Prototypes 1 | . 1 . . Fabricator Hacks . | . . . . Repair Station Hacks . | . . . . Recycling Unit Hacks . | . . . . Scanalyzer . | . . . . Garrison Access Hacks . | . . . . Unauthorized Hacks 3 | . 3 . . Terminals 3 | . 3 . . Track 1 | . 1 . . Botnet 2 | . 2 . . Fabricators . | . . . . Repair Stations . | . . . . Recycling Units . | . . . . Scanalyzers . | . . . . Garrison Access . | . . . . Data Cores Recovered . | . . . . Used . | . . . . Hacking Detections 5 | . 5 . . Full Trace Events . | . . . . Feedback Events . | . . . . Feedback Blocked . | . . . . Robot Schematics Acquired . | . . . . Robots Built . | . . . . Authchips . | . . . . Time . | . . . . Total Robot Build Rating . | . . . . Part Schematics Acquired . | . . . . Parts Built . | . . . . Authchips . | . . . . Time . | . . . . Total Part Build Rating . | . . . . Parts Repaired . | . . . . Time . | . . . . Parts Recycled . | . . . . Recycled Matter . | . . . . Retrieved Matter . | . . . . Retrieved Components . | . . . . Parts Scanalyzed . | . . . . Part Schematics Acquired . | . . . . Parts Damaged . | . . . . Bothacking | -11 -10 -10 -10 ------------ Run | Yrd Mat Min Sub Used RIF Installer . | . . . . Robots Hacked . | . . . . Non-combat . | . . . . Combat . | . . . . Robot Hacks Applied . | . . . . Relay Couplers Released . | . . . . Fabnet Peak Effective % . | . . . . Robots Rewired . | . . . . Allies Hacked . | . . . . Hacks Repelled . | . . . . Allies | -11 -10 -10 -10 -------- Run | Yrd Mat Min Sub Total Allies . | . . . . Largest Group . | . . . . Highest-Rated Group . | . . . . Highest-Rated Ally . | . . . . Total Orders . | . . . . Ally Attacks . | . . . . Total Damage . | . . . . Kills . | . . . . Allies Corrupted . | . . . . Allies Melted . | . . . . Intel | -11 -10 -10 -10 ------- Run | Yrd Mat Min Sub Robot Analysis Total . | . . . . Derelict Logs Recovered . | . . . . Drone Launches . | . . . . Drone Recoveries . | . . . . Exploration | -11 -10 -10 -10 ------------- Run | Yrd Mat Min Sub Turns Passed 2217 | 74 455 711 977 Spaces Moved 1546 | 33 305 492 716 Core . | . . . . Treads . | . . . . Legs 1439 | 33 305 492 609 Wheels 107 | . . . 107 Hover . | . . . . Flight . | . . . . Fastest Speed 110 | 120 120 120 110 Average Speed 119 | 120 120 120 118 Slowest Speed 120 | 120 120 120 120 Overloaded Moves . | . . . . Propulsion Burnouts . | . . . . Robots Hopped . | . . . . Cave-ins Triggered . | . . . . Exploration Rate (%) 44 | 5 50 85 39 Regions Visited 3 Branch Regions 2 Pre-discovered Areas . | . . . . Known Exits Taken . | . . . . Unknown Exits Taken 3 | 1 1 1 . Scrap Searched 9 | . . 2 7 Spaces Dug . | . . . . Terrain Destroyed 32 | . . 32 . Melee . | . . . . Projectile . | . . . . AOE 32 | . . 32 . Terrain Rammed . | . . . . Walls Destroyed . | . . . . Machines Disabled . | . . . . Actions | -11 -10 -10 -10 --------- Run | Yrd Mat Min Sub Total 1778 | 49 347 587 795 Wait 95 | . 2 66 27 Move 1543 | 32 304 491 716 Hop . | . . . . Pick Up 16 | 3 5 1 7 Fast Attach 3 | . 1 . 2 Attach 3 | . . 1 2 Detach . | . . . . Swap 10 | . 1 6 3 Drop 23 | 2 6 5 10 Fire 82 | 12 28 17 25 Melee 3 | . . . 3 Ram . | . . . . Kick . | . . . . Crush . | . . . . Escape Stasis . | . . . . Rewire . | . . . . Trap . | . . . . Miscellaneous . | . . . . Route ------- -11/Scrapyard -10/Materials (discovered 2 exits: [*Mat] / [*Min]) -10/Mines (discovered 3 exits: [*Mat x2] / [*Sub]) -10/Subcaves History --------- Turn | Location | Event 1 | -11/Scrapyard | Discovered new exit (range 1) 75 | -11/Scrapyard | Entered Materials 314 | -10/Materials | Build established: Mutant 374 | -10/Materials | Discovered new exit (range 15) 450 | -10/Materials | Discovered new exit (range 6) 530 | -10/Materials | Entered Mines 631 | -10/Mines | Discovered new exit (range 7) 770 | -10/Mines | Received a Rocket Launcher from a helpful Derelict 808 | -10/Mines | Discovered new exit (range 8) 1073 | -10/Mines | Core integrity fell below 50% 1189 | -10/Mines | Discovered new exit (range 10) 1241 | -10/Mines | Entered Subcaves 1321 | -10/Subcaves | Build established: Scavenger-Mutant 1350 | -10/Subcaves | Shifting Twisted Machinery released Sub. Machine Gun 1384 | -10/Subcaves | Shifting Twisted Machinery released Sub. Power Source 1899 | -10/Subcaves | Shifting Twisted Machinery released Flamer 1911 | -10/Subcaves | Shifting Twisted Machinery released Sub. Laser 2211 | -10/Subcaves | Core integrity fell below 20% 2218 | -10/Subcaves | Destroyed by IW-VE3(R) with Subdweller Shrapnel Launcher Last Messages --------------- 02061_ Found Spk. Treads. 02065_ Acquired Mak. Light Armor Plating. 02068_ Dropped Aluminum Leg. 02068_ Aluminum Leg crushed and broken. 02069_ Acquired Sub. Monowheel. 02071_ Dropped Shrapnel Trap. 02072_ Acquired Sub. Machine Gun. 02074_ Acquired 20 matter. 02090_ Dropped Rocket Launcher. 02092_ Acquired Sub. Power Source. 02108_ Dropped Lgt. Nuclear Core. 02110_ Acquired Sub. Optics. 02144_ Acquired 10 matter. 02181_ S9-OX9(R) destroyed. 02207_ Sub. Monowheel shoots sparks and powers down. 02208_ Dropped Broken Sub. Monowheel. 02211_ IW-VE3(R) suffers critical hit (Burn). 02214_ Particle Gun destroyed. 02216_ Beam Rifle destroyed. Map ----- +----------------------------------------------------+ | ?????????????????????????????????????????????????? | | ?????????????????????????????????????????????????? | | ?????????????????????????????????????????????????? | | ?????????????????????????????????????????????????? | | ?????????????????????????????????????????????????? | | ?????????????????????????????????????????????????? | | ?????????????????????????????????????????????????? | | ???????????????? ????????????????????????????????? | | ???????????????? ???????????????????????????????? | | ?????????? ""?? ???????????????????????????????? | | ??????????# " "" ???????????????????????????????? | | ??????????# " "" ???????????????????????????????? | | ??????????# ???????????????????????????????? | | ??????????# #??????????????????????????????? | | ??????????# ##????????????????????????????? | | ??????????# ###??????????????????????????? | | ???????????? "##?##??????????????????????? | | ?????????????# RR ## ##?????????????????????? | | ??????????????# #?????????????????????? | | ?????????###??# #??????#???????????????? | | ?????????# ##?# #####?# ????????????????? | | ?????????# ### ;;# # ?????????????????? | | #????????# ##### ##?????????????????? | | ##???????# #??## ##????????????????? | | &#???????# #???## #????????????????? | | %#???????# ###???## @ #????????????????? | | "#???????# ###### ##????????????????? | | ###?????## ## #????????????????? | | # ####### #; [ #????????????????? | | & # ## # !% ##????????????????? | | ## ## & ##?????????????????? | | ### ;; ####??????????????????? | | ##### #?# ###; ###???????????????????? | | #???#### ####?### #???????????????????? | | #??????# ???# #?##????????????????? | | ????? #?# ##? ##???????????????? | | ??? ### #?# ## #???????????????? | | ## #? ## ######??# ## ## #???????? ?????? | | #?###???##?????????# #??????? ????? | | ##??????????????????#### #??????# ????? | | ???????????????????????## ##????## ???? | | ????????????????????????#### #????# ????? | | ??????????????????????????## #???# ???? | | ?????????????????????????## #??# ??????? | | ?????????????????????????# ### #?????????? | | ?????????????????????????# * #??????????? | | ?????????????????????????## %= #??????????? | | ??????????????????????????## & ##??????????? | | ???????????????????????????# ##???????????? | | ???????????????????????????# #????????????? | +----------------------------------------------------+ Best States ------------- Heat Dissipation 25 Energy Generation 15 Energy Capacity 200 Matter Stores 300 Matter Capacity 300 Sight Range 16 Terrain Scan Density 10 Armor Coverage 100 Evasion (%) 55 Item Schematics ----------------- None Robot Schematics ------------------ None Fabricated ------------ Nothing Alien Tech Used ----------------- None Achievements -------------- None Challenges ------------ None Game ------ Seed ReinforcedElectronFlamer Manual? 0 Play Time 00:18:10 Cumulative 100.0 hours Start 2024.09.19 @ 18:24:36 End 2024.09.19 @ 19:30:23 Sessions 1 Manual Loads 0 Difficulty Rogue Special Mode None Game No. 155 Rogue 151 Adventurer 4 Explorer 0 Win Type - Total 0 Types 0/0/0/0/0/0/0/0/0 Lore% 45 Gallery% 56 Achievement% 42 Wizard Run 0 Options --------- Layout 2 ASCII 0 Keyboard 0 Movement Mouse Keybinds 0 Fullscreen 2 Font 24/Smallcaps Map View 50x44 Zoom Use 0% Tactical HUD 1 Map Filters NONE Filters NONE Steam 1 RUN: 49ada089-4532-481c-86c7-604926075137